[Event "January 9 Late 2024"]
[Site "https://www.chess.com"]
[Date "2024.01.09"]
[Round "1"]
[White "Santos Flores, Alberto"]
[Black "Daneshvar, Bardiya"]
[Result "0-1"]
[Board "47"]
[TimeControl "180+1"]
[WhiteFideId "3601234"]
[BlackFideId "12576468"]
[WhiteElo "2509"]
[BlackElo "2937"]
[WhiteTeam "ECU"]
[BlackTeam "IRI"]
[WhiteClock "0:00:00"]
[BlackClock "0:00:19"]

1. e4 {[%clk 0:02:57]}  c6 {[%clk 0:02:59]} 2. c4 {[%clk 0:02:56]}  Na6 {[%clk 0:03:00]} 3. Nc3 {[%clk 0:02:55]}  Nc7 {[%clk 0:03:01]} 4. d4 {[%clk 0:02:51]}  d5 {[%clk 0:03:02]} 5. cxd5 {[%clk 0:02:50]}  cxd5 {[%clk 0:03:02]} 6. e5 {[%clk 0:02:51]}  Bf5 {[%clk 0:03:01]} 7. Nf3 {[%clk 0:02:47]}  e6 {[%clk 0:03:00]} 8. Bd3 {[%clk 0:02:46]}  Bxd3 {[%clk 0:02:59]} 9. Qxd3 {[%clk 0:02:47]}  Ne7 {[%clk 0:03:00]} 10. O-O {[%clk 0:02:47]}  Nc6 {[%clk 0:03:00]} 11. Bg5 {[%clk 0:02:45]}  Be7 {[%clk 0:03:00]} 12. Bxe7 {[%clk 0:02:45]}  Qxe7 {[%clk 0:03:01]} 13. Rac1 {[%clk 0:02:41]}  O-O {[%clk 0:03:01]} 14. h4 {[%clk 0:02:36]}  f6 {[%clk 0:02:59]} 15. Rfe1 {[%clk 0:02:18]}  fxe5 {[%clk 0:02:58]} 16. dxe5 {[%clk 0:02:08]}  h6 {[%clk 0:02:57]} 17. Qg6 {[%clk 0:02:06]}  Qf7 {[%clk 0:02:51]} 18. Qxf7+ {[%clk 0:02:01]}  Rxf7 {[%clk 0:02:52]} 19. Ne2 {[%clk 0:01:57]}  Nb5 {[%clk 0:02:03]} 20. a4 {[%clk 0:01:51]}  Nc7 {[%clk 0:02:04]} 21. Ned4 {[%clk 0:01:51]}  Nb4 {[%clk 0:02:04]} 22. Rc3 {[%clk 0:01:43]}  Re7 {[%clk 0:01:48]} 23. Rec1 {[%clk 0:01:36]}  Ne8 {[%clk 0:01:45]} 24. Rc8 {[%clk 0:01:35]}  Rxc8 {[%clk 0:01:45]} 25. Rxc8 {[%clk 0:01:35]}  Kf7 {[%clk 0:01:45]} 26. Nb5 {[%clk 0:01:28]}  Nc6 {[%clk 0:01:43]} 27. Nbd4 {[%clk 0:01:05]}  Nxd4 {[%clk 0:01:12]} 28. Nxd4 {[%clk 0:01:05]}  a6 {[%clk 0:01:12]} 29. h5 {[%clk 0:01:02]}  Rc7 {[%clk 0:01:10]} 30. Rxc7+ {[%clk 0:00:59]}  Nxc7 {[%clk 0:01:09]} 31. f4 {[%clk 0:00:58]}  Na8 {[%clk 0:01:05]} 32. Kf2 {[%clk 0:00:52]}  Nb6 {[%clk 0:01:05]} 33. b3 {[%clk 0:00:52]}  Nd7 {[%clk 0:01:06]} 34. g4 {[%clk 0:00:48]}  Nc5 {[%clk 0:01:06]} 35. Ke3 {[%clk 0:00:43]}  a5 {[%clk 0:01:05]} 36. f5 {[%clk 0:00:43]}  Ke7 {[%clk 0:01:00]} 37. Kf3 {[%clk 0:00:16]}  Nd3 {[%clk 0:00:53]} 38. Nxe6 {[%clk 0:00:16]}  Nxe5+ {[%clk 0:00:54]} 39. Kf4 {[%clk 0:00:17]}  Kf6 {[%clk 0:00:52]} 40. Nxg7 {[%clk 0:00:16]}  Nd3+ {[%clk 0:00:53]} 41. Ke3 {[%clk 0:00:16]}  Nc5 {[%clk 0:00:53]} 42. Ne8+ {[%clk 0:00:14]}  Ke5 {[%clk 0:00:49]} 43. f6 {[%clk 0:00:12]}  d4+ {[%clk 0:00:49]} 44. Kd2 {[%clk 0:00:11]}  Ne4+ {[%clk 0:00:33]} 45. Kd3 {[%clk 0:00:11]}  Nxf6 {[%clk 0:00:34]} 46. Nxf6 {[%clk 0:00:05]}  Kxf6 {[%clk 0:00:35]} 47. Kxd4 {[%clk 0:00:05]}  Kg5 {[%clk 0:00:35]} 48. Kc5 {[%clk 0:00:05]}  Kxg4 {[%clk 0:00:36]} 49. Kb6 {[%clk 0:00:05]}  Kxh5 {[%clk 0:00:37]} 50. Kxa5 {[%clk 0:00:06]}  Kg6 {[%clk 0:00:34]} 51. Kb6 {[%clk 0:00:06]}  h5 {[%clk 0:00:35]} 52. a5 {[%clk 0:00:05]}  h4 {[%clk 0:00:36]} 53. Kxb7 {[%clk 0:00:05]}  h3 {[%clk 0:00:36]} 54. a6 {[%clk 0:00:06]}  h2 {[%clk 0:00:37]} 55. a7 {[%clk 0:00:06]}  h1=Q+ {[%clk 0:00:38]} 56. Kb8 {[%clk 0:00:06]}  Qh2+ {[%clk 0:00:36]} 57. Kb7 {[%clk 0:00:06]}  Qg2+ {[%clk 0:00:36]} 58. Kb8 {[%clk 0:00:06]}  Qg3+ {[%clk 0:00:37]} 59. Kb7 {[%clk 0:00:06]}  Qf3+ {[%clk 0:00:37]} 60. Kb8 {[%clk 0:00:07]}  Qf4+ {[%clk 0:00:38]} 61. Kb7 {[%clk 0:00:07]}  Qe4+ {[%clk 0:00:38]} 62. Kb8 {[%clk 0:00:07]}  Qe5+ {[%clk 0:00:39]} 63. Kb7 {[%clk 0:00:08]}  Qb5+ {[%clk 0:00:39]} 64. Kc7 {[%clk 0:00:07]}  Qa6 {[%clk 0:00:37]} 65. Kb8 {[%clk 0:00:07]}  Qb6+ {[%clk 0:00:37]} 66. Ka8 {[%clk 0:00:07]}  Kf7 {[%clk 0:00:37]} 67. b4 {[%clk 0:00:08]}  Ke6 {[%clk 0:00:22]} 68. b5 {[%clk 0:00:08]}  Qc5 {[%clk 0:00:23]} 69. Kb7 {[%clk 0:00:08]}  Qxb5+ {[%clk 0:00:18]} 70. Kc7 {[%clk 0:00:08]}  Qc5+ {[%clk 0:00:18]} 71. Kb7 {[%clk 0:00:08]}  Kd7 {[%clk 0:00:18]} 72. a8=Q {[%clk 0:00:07]}  Qb5+ {[%clk 0:00:18]} 73. Ka7 {[%clk 0:00:00]}  Kc7 {[%clk 0:00:19]} 0-1

[Event "January 9 Late 2024"]
[Site "https://www.chess.com"]
[Date "2024.01.10"]
[Round "1"]
[White "Ashraf, Artin"]
[Black "Silva, Caio Henrique Angelico"]
[Result "1-0"]
[Board "48"]
[TimeControl "180+1"]
[WhiteFideId "22514805"]
[BlackFideId "22777210"]
[WhiteElo "2931"]
[BlackElo "2508"]
[WhiteTeam "IRI"]
[BlackTeam "BRA"]
[WhiteClock "0:01:07"]
[BlackClock "0:00:06"]

1. e4 {[%clk 0:03:00]}  c6 {[%clk 0:02:59]} 2. d4 {[%clk 0:02:54]}  d5 {[%clk 0:03:00]} 3. exd5 {[%clk 0:02:55]}  cxd5 {[%clk 0:03:00]} 4. Bd3 {[%clk 0:02:56]}  Nc6 {[%clk 0:03:00]} 5. c3 {[%clk 0:02:54]}  Nf6 {[%clk 0:02:59]} 6. Bf4 {[%clk 0:02:54]}  Bg4 {[%clk 0:02:57]} 7. Qb3 {[%clk 0:02:53]}  Qd7 {[%clk 0:02:57]} 8. Nd2 {[%clk 0:02:49]}  e6 {[%clk 0:02:57]} 9. Ngf3 {[%clk 0:02:49]}  Bxf3 {[%clk 0:02:56]} 10. Nxf3 {[%clk 0:02:49]}  Bd6 {[%clk 0:02:56]} 11. Bg3 {[%clk 0:02:49]}  O-O {[%clk 0:02:54]} 12. O-O {[%clk 0:02:50]}  Bxg3 {[%clk 0:02:49]} 13. hxg3 {[%clk 0:02:50]}  a6 {[%clk 0:02:45]} 14. Rae1 {[%clk 0:02:37]}  Qc7 {[%clk 0:02:44]} 15. Qd1 {[%clk 0:02:37]}  b5 {[%clk 0:02:42]} 16. a3 {[%clk 0:02:36]}  Rab8 {[%clk 0:02:41]} 17. g4 {[%clk 0:02:35]}  g6 {[%clk 0:02:30]} 18. g5 {[%clk 0:02:34]}  Nh5 {[%clk 0:02:28]} 19. g3 {[%clk 0:02:27]}  a5 {[%clk 0:02:14]} 20. Kg2 {[%clk 0:02:25]}  b4 {[%clk 0:02:10]} 21. cxb4 {[%clk 0:02:23]}  axb4 {[%clk 0:02:11]} 22. a4 {[%clk 0:02:24]}  b3 {[%clk 0:01:49]} 23. Bb5 {[%clk 0:02:23]}  Na7 {[%clk 0:01:47]} 24. Qxb3 {[%clk 0:02:18]}  Nxb5 {[%clk 0:01:47]} 25. axb5 {[%clk 0:02:19]}  Qb6 {[%clk 0:01:47]} 26. Ne5 {[%clk 0:02:14]}  Qxb5 {[%clk 0:01:43]} 27. Qf3 {[%clk 0:02:14]}  f6 {[%clk 0:01:33]} 28. gxf6 {[%clk 0:01:58]}  Rxf6 {[%clk 0:01:33]} 29. Qe3 {[%clk 0:01:56]}  Re8 {[%clk 0:01:13]} 30. Ng4 {[%clk 0:01:54]}  Rff8 {[%clk 0:01:08]} 31. Qe5 {[%clk 0:01:53]}  Ng7 {[%clk 0:00:39]} 32. Rc1 {[%clk 0:01:43]}  Qd3 {[%clk 0:00:31]} 33. Nf6+ {[%clk 0:01:31]}  Rxf6 {[%clk 0:00:31]} 34. Qxf6 {[%clk 0:01:32]}  Rf8 {[%clk 0:00:32]} 35. Qe5 {[%clk 0:01:33]}  Qf3+ {[%clk 0:00:32]} 36. Kg1 {[%clk 0:01:32]}  Qf7 {[%clk 0:00:16]} 37. Rc7 {[%clk 0:01:31]}  Qf6 {[%clk 0:00:12]} 38. Qxf6 {[%clk 0:01:26]}  Rxf6 {[%clk 0:00:13]} 39. Rc8+ {[%clk 0:01:26]}  Kf7 {[%clk 0:00:12]} 40. Ra1 {[%clk 0:01:24]}  g5 {[%clk 0:00:12]} 41. Ra7+ {[%clk 0:01:23]}  Kg6 {[%clk 0:00:13]} 42. Rg8 {[%clk 0:01:23]}  Rf7 {[%clk 0:00:12]} 43. Rxf7 {[%clk 0:01:23]}  Kxf7 {[%clk 0:00:13]} 44. Rh8 {[%clk 0:01:18]}  Nf5 {[%clk 0:00:14]} 45. Rxh7+ {[%clk 0:01:11]}  Kg6 {[%clk 0:00:14]} 46. Rb7 {[%clk 0:01:07]}  Nxd4 {[%clk 0:00:15]} 47. b4 {[%clk 0:01:07]}  Kf6 {[%clk 0:00:12]} 48. b5 {[%clk 0:01:07]}  Ke5 {[%clk 0:00:13]} 49. b6 {[%clk 0:01:07]}  Kd6 {[%clk 0:00:12]} 50. Rc7 {[%clk 0:01:07]}  g4 {[%clk 0:00:09]} 51. Rc8 {[%clk 0:01:06]}  Kd7 {[%clk 0:00:06]} 52. b7 {[%clk 0:01:06]}  Nc6 {[%clk 0:00:06]} 53. Rxc6 {[%clk 0:01:06]}  Kxc6 {[%clk 0:00:06]} 54. b8=Q {[%clk 0:01:07]} 1-0

[Event "January 9 Late 2024"]
[Site "https://www.chess.com"]
[Date "2024.01.09"]
[Round "1"]
[White "Avramidou, Anastasia"]
[Black "Matlakov, Maxim"]
[Result "0-1"]
[Board "49"]
[TimeControl "180+1"]
[WhiteFideId "4239873"]
[BlackFideId "4168003"]
[WhiteElo "2508"]
[BlackElo "2927"]
[WhiteTeam "GRE"]
[BlackTeam "RUS"]
[WhiteClock "0:00:00"]
[BlackClock "0:00:24"]

1. Nf3 {[%clk 0:03:00]}  Nf6 {[%clk 0:02:59]} 2. c4 {[%clk 0:02:58]}  b6 {[%clk 0:02:59]} 3. Nc3 {[%clk 0:02:58]}  Bb7 {[%clk 0:02:59]} 4. d3 {[%clk 0:02:58]}  g6 {[%clk 0:02:59]} 5. e4 {[%clk 0:02:58]}  d6 {[%clk 0:02:59]} 6. g3 {[%clk 0:02:59]}  Bg7 {[%clk 0:02:59]} 7. Bg2 {[%clk 0:02:59]}  c5 {[%clk 0:03:00]} 8. O-O {[%clk 0:03:00]}  O-O {[%clk 0:03:00]} 9. h3 {[%clk 0:03:00]}  Nbd7 {[%clk 0:02:58]} 10. Be3 {[%clk 0:02:58]}  Rc8 {[%clk 0:02:58]} 11. Qd2 {[%clk 0:02:57]}  a6 {[%clk 0:02:58]} 12. a4 {[%clk 0:02:57]}  e6 {[%clk 0:02:57]} 13. Rae1 {[%clk 0:02:49]}  Nb8 {[%clk 0:02:56]} 14. Bh6 {[%clk 0:02:49]}  Nc6 {[%clk 0:02:56]} 15. Bxg7 {[%clk 0:02:46]}  Kxg7 {[%clk 0:02:56]} 16. b3 {[%clk 0:02:45]}  Nd7 {[%clk 0:02:53]} 17. Qb2 {[%clk 0:02:41]}  Qf6 {[%clk 0:02:47]} 18. Nh2 {[%clk 0:02:37]}  h5 {[%clk 0:02:42]} 19. f4 {[%clk 0:02:34]}  Kg8 {[%clk 0:02:16]} 20. Kh1 {[%clk 0:02:29]}  Qg7 {[%clk 0:02:15]} 21. g4 {[%clk 0:02:26]}  hxg4 {[%clk 0:02:14]} 22. hxg4 {[%clk 0:02:27]}  Nd4 {[%clk 0:01:51]} 23. Re3 {[%clk 0:02:21]}  f6 {[%clk 0:01:37]} 24. Ne2 {[%clk 0:02:06]}  Nxe2 {[%clk 0:01:34]} 25. Qxe2 {[%clk 0:02:05]}  Kf7 {[%clk 0:01:34]} 26. Rh3 {[%clk 0:01:57]}  Rh8 {[%clk 0:01:33]} 27. Rff3 {[%clk 0:01:57]}  Ke7 {[%clk 0:01:31]} 28. Kg1 {[%clk 0:01:57]}  Rcf8 {[%clk 0:01:27]} 29. Qb2 {[%clk 0:01:56]}  Kd8 {[%clk 0:01:25]} 30. g5 {[%clk 0:01:42]}  Rxh3 {[%clk 0:01:18]} 31. Bxh3 {[%clk 0:01:39]}  Qe7 {[%clk 0:01:12]} 32. gxf6 {[%clk 0:01:26]}  Nxf6 {[%clk 0:01:13]} 33. b4 {[%clk 0:01:13]}  Kc7 {[%clk 0:01:08]} 34. a5 {[%clk 0:01:11]}  bxa5 {[%clk 0:00:58]} 35. bxa5 {[%clk 0:01:12]}  Nh5 {[%clk 0:00:53]} 36. Qb6+ {[%clk 0:00:38]}  Kb8 {[%clk 0:00:53]} 37. Bg2 {[%clk 0:00:34]}  Nxf4 {[%clk 0:00:51]} 38. Ng4 {[%clk 0:00:15]}  Ka8 {[%clk 0:00:44]} 39. Ne3 {[%clk 0:00:05]}  Nxd3 {[%clk 0:00:33]} 40. Rxf8+ {[%clk 0:00:05]}  Qxf8 {[%clk 0:00:34]} 41. Ng4 {[%clk 0:00:02]}  Nf4 {[%clk 0:00:29]} 42. Bh1 {[%clk 0:00:01]}  Ne2+ {[%clk 0:00:26]} 43. Kg2 {[%clk 0:00:02]}  Bxe4+ {[%clk 0:00:26]} 44. Kh2 {[%clk 0:00:00]}  Qh8+ {[%clk 0:00:24]} 0-1

[Event "January 9 Late 2024"]
[Site "https://www.chess.com"]
[Date "2024.01.09"]
[Round "1"]
[White "Alekseenko, Kirill"]
[Black "Petre, Nad-Titus"]
[Result "1-0"]
[Board "52"]
[TimeControl "180+1"]
[WhiteFideId "4135539"]
[BlackFideId "1204165"]
[WhiteElo "2924"]
[BlackElo "2504"]
[WhiteTeam "AUT"]
[BlackTeam "ROU"]
[WhiteClock "0:00:54"]
[BlackClock "0:00:03"]

1. e4 {[%clk 0:03:00]}  e5 {[%clk 0:02:58]} 2. Nf3 {[%clk 0:03:00]}  Nc6 {[%clk 0:02:58]} 3. Bc4 {[%clk 0:03:00]}  Bc5 {[%clk 0:02:53]} 4. d3 {[%clk 0:02:59]}  Nf6 {[%clk 0:02:50]} 5. h3 {[%clk 0:02:58]}  h6 {[%clk 0:02:49]} 6. Nc3 {[%clk 0:02:53]}  a6 {[%clk 0:02:45]} 7. a4 {[%clk 0:02:53]}  d6 {[%clk 0:02:41]} 8. Be3 {[%clk 0:02:53]}  Bxe3 {[%clk 0:02:27]} 9. fxe3 {[%clk 0:02:54]}  Ne7 {[%clk 0:02:28]} 10. O-O {[%clk 0:02:52]}  Ng6 {[%clk 0:02:04]} 11. a5 {[%clk 0:02:39]}  Qe7 {[%clk 0:02:00]} 12. Ne2 {[%clk 0:02:22]}  Be6 {[%clk 0:01:57]} 13. Bxe6 {[%clk 0:02:20]}  fxe6 {[%clk 0:01:42]} 14. c4 {[%clk 0:02:17]}  O-O {[%clk 0:01:39]} 15. Ng3 {[%clk 0:02:13]}  Nh7 {[%clk 0:01:04]} 16. b4 {[%clk 0:02:08]}  c6 {[%clk 0:00:59]} 17. Kh2 {[%clk 0:01:57]}  Ng5 {[%clk 0:00:57]} 18. Nxg5 {[%clk 0:01:31]}  Qxg5 {[%clk 0:00:58]} 19. Qe2 {[%clk 0:01:31]}  Nh4 {[%clk 0:00:51]} 20. Rxf8+ {[%clk 0:01:26]}  Rxf8 {[%clk 0:00:52]} 21. Rf1 {[%clk 0:01:23]}  Rxf1 {[%clk 0:00:33]} 22. Nxf1 {[%clk 0:01:24]}  h5 {[%clk 0:00:27]} 23. g3 {[%clk 0:01:20]}  Ng6 {[%clk 0:00:27]} 24. h4 {[%clk 0:01:20]}  Qh6 {[%clk 0:00:22]} 25. Nd2 {[%clk 0:01:18]}  Ne7 {[%clk 0:00:19]} 26. Nf3 {[%clk 0:01:08]}  Kf7 {[%clk 0:00:18]} 27. Ng5+ {[%clk 0:01:07]}  Ke8 {[%clk 0:00:18]} 28. Qf3 {[%clk 0:01:06]}  Kd7 {[%clk 0:00:18]} 29. Kg2 {[%clk 0:01:03]}  Qg6 {[%clk 0:00:15]} 30. Qf8 {[%clk 0:01:00]}  d5 {[%clk 0:00:03]} 31. Nf7 {[%clk 0:00:54]} 1-0

[Event "January 9 Late 2024"]
[Site "https://www.chess.com"]
[Date "2024.01.09"]
[Round "1"]
[White "Martin Barcelo, Carles"]
[Black "Sanal, Vahap"]
[Result "1/2-1/2"]
[Board "53"]
[TimeControl "180+1"]
[WhiteFideId "24561444"]
[BlackFideId "6300545"]
[WhiteElo "2502"]
[BlackElo "2923"]
[WhiteTeam "ESP"]
[BlackTeam "TUR"]
[WhiteClock "0:00:10"]
[BlackClock "0:00:06"]

1. e4 {[%clk 0:03:00]}  d6 {[%clk 0:02:57]} 2. d4 {[%clk 0:03:00]}  Nf6 {[%clk 0:02:58]} 3. Nc3 {[%clk 0:02:58]}  e5 {[%clk 0:02:58]} 4. Nf3 {[%clk 0:02:53]}  Nbd7 {[%clk 0:02:58]} 5. Bc4 {[%clk 0:02:51]}  Be7 {[%clk 0:02:57]} 6. a4 {[%clk 0:02:51]}  O-O {[%clk 0:02:57]} 7. a5 {[%clk 0:02:51]}  c6 {[%clk 0:02:56]} 8. O-O {[%clk 0:02:50]}  h6 {[%clk 0:02:56]} 9. h3 {[%clk 0:02:49]}  Re8 {[%clk 0:02:54]} 10. Re1 {[%clk 0:02:50]}  Rb8 {[%clk 0:02:53]} 11. Bb3 {[%clk 0:02:48]}  b5 {[%clk 0:02:52]} 12. axb6 {[%clk 0:02:49]}  axb6 {[%clk 0:02:52]} 13. d5 {[%clk 0:02:46]}  Bb7 {[%clk 0:02:39]} 14. dxc6 {[%clk 0:02:40]}  Bxc6 {[%clk 0:02:40]} 15. Bd5 {[%clk 0:02:40]}  Nxd5 {[%clk 0:02:36]} 16. Nxd5 {[%clk 0:02:41]}  Nf6 {[%clk 0:02:29]} 17. Ra7 {[%clk 0:02:22]}  Nxd5 {[%clk 0:02:20]} 18. exd5 {[%clk 0:02:23]}  Bd7 {[%clk 0:02:20]} 19. Bd2 {[%clk 0:02:15]}  Ra8 {[%clk 0:02:19]} 20. Qa1 {[%clk 0:02:11]}  Rxa7 {[%clk 0:02:14]} 21. Qxa7 {[%clk 0:02:12]}  Bf5 {[%clk 0:02:14]} 22. Be3 {[%clk 0:01:57]}  Bxc2 {[%clk 0:02:09]} 23. Bxb6 {[%clk 0:01:56]}  Qb8 {[%clk 0:02:06]} 24. Nd2 {[%clk 0:01:34]}  Qxa7 {[%clk 0:01:58]} 25. Bxa7 {[%clk 0:01:35]}  Ra8 {[%clk 0:01:58]} 26. Bd4 {[%clk 0:01:29]}  Rb8 {[%clk 0:01:51]} 27. Bc3 {[%clk 0:01:28]}  g5 {[%clk 0:01:45]} 28. g4 {[%clk 0:01:27]}  f5 {[%clk 0:01:42]} 29. Ra1 {[%clk 0:01:18]}  Rb7 {[%clk 0:01:37]} 30. Ra6 {[%clk 0:01:16]}  Bd3 {[%clk 0:01:34]} 31. Ra5 {[%clk 0:01:09]}  Kf7 {[%clk 0:01:31]} 32. Kg2 {[%clk 0:01:08]}  Rb5 {[%clk 0:01:00]} 33. Rxb5 {[%clk 0:00:38]}  Bxb5 {[%clk 0:01:00]} 34. gxf5 {[%clk 0:00:38]}  Bd3 {[%clk 0:01:00]} 35. f3 {[%clk 0:00:33]}  Bxf5 {[%clk 0:00:59]} 36. Ne4 {[%clk 0:00:34]}  Ke8 {[%clk 0:00:56]} 37. Bb4 {[%clk 0:00:29]}  Kd7 {[%clk 0:00:56]} 38. Kf2 {[%clk 0:00:30]}  Bg6 {[%clk 0:00:56]} 39. Kg3 {[%clk 0:00:28]}  Bf7 {[%clk 0:00:55]} 40. Nc3 {[%clk 0:00:27]}  h5 {[%clk 0:00:56]} 41. Ba5 {[%clk 0:00:25]}  Bg6 {[%clk 0:00:49]} 42. Bb6 {[%clk 0:00:23]}  Bd3 {[%clk 0:00:47]} 43. Be3 {[%clk 0:00:20]}  Bc4 {[%clk 0:00:46]} 44. Bb6 {[%clk 0:00:18]}  Ke8 {[%clk 0:00:40]} 45. Kg2 {[%clk 0:00:18]}  Kf7 {[%clk 0:00:40]} 46. Kg3 {[%clk 0:00:18]}  Kg6 {[%clk 0:00:40]} 47. Be3 {[%clk 0:00:19]}  Kf7 {[%clk 0:00:35]} 48. Bb6 {[%clk 0:00:19]}  Bb3 {[%clk 0:00:33]} 49. Kg2 {[%clk 0:00:19]}  Kg6 {[%clk 0:00:33]} 50. Kg3 {[%clk 0:00:19]}  Kf5 {[%clk 0:00:33]} 51. Bc7 {[%clk 0:00:19]}  Bf8 {[%clk 0:00:30]} 52. Bb6 {[%clk 0:00:18]}  Be7 {[%clk 0:00:23]} 53. Bc7 {[%clk 0:00:18]}  h4+ {[%clk 0:00:16]} 54. Kf2 {[%clk 0:00:18]}  Kg6 {[%clk 0:00:13]} 55. Ne4 {[%clk 0:00:13]}  Bxd5 {[%clk 0:00:13]} 56. Bxd6 {[%clk 0:00:14]}  Bxe4 {[%clk 0:00:03]} 57. Bxe7 {[%clk 0:00:14]}  Bf5 {[%clk 0:00:04]} 58. Bd6 {[%clk 0:00:14]}  Kf6 {[%clk 0:00:03]} 59. Kg2 {[%clk 0:00:13]}  Bd7 {[%clk 0:00:04]} 60. Bc7 {[%clk 0:00:13]}  Kf5 {[%clk 0:00:04]} 61. Bd8 {[%clk 0:00:14]}  Be6 {[%clk 0:00:05]} 62. Bc7 {[%clk 0:00:14]}  Bb3 {[%clk 0:00:05]} 63. Bd8 {[%clk 0:00:14]}  Bd5 {[%clk 0:00:05]} 64. Bc7 {[%clk 0:00:15]}  Kf4 {[%clk 0:00:05]} 65. Kf2 {[%clk 0:00:14]}  Bb3 {[%clk 0:00:05]} 66. Bd6 {[%clk 0:00:14]}  Kf5 {[%clk 0:00:04]} 67. Ke3 {[%clk 0:00:14]}  Bc4 {[%clk 0:00:04]} 68. Kf2 {[%clk 0:00:14]}  Bb5 {[%clk 0:00:04]} 69. Kg2 {[%clk 0:00:14]}  Kf4 {[%clk 0:00:05]} 70. Bc7 {[%clk 0:00:14]}  Bd7 {[%clk 0:00:05]} 71. Bb8 {[%clk 0:00:13]}  Bc6 {[%clk 0:00:05]} 72. Kf2 {[%clk 0:00:13]}  Bb7 {[%clk 0:00:05]} 73. Bc7 {[%clk 0:00:14]}  Bc8 {[%clk 0:00:05]} 74. Kg2 {[%clk 0:00:14]}  Bf5 {[%clk 0:00:06]} 75. Bd6 {[%clk 0:00:13]}  Bg6 {[%clk 0:00:07]} 76. Bc7 {[%clk 0:00:13]}  Bh5 {[%clk 0:00:07]} 77. Kf2 {[%clk 0:00:14]}  Kf5 {[%clk 0:00:07]} 78. Kg2 {[%clk 0:00:14]}  Be8 {[%clk 0:00:07]} 79. Kf2 {[%clk 0:00:14]}  Bc6 {[%clk 0:00:07]} 80. Bb8 {[%clk 0:00:14]}  Bb7 {[%clk 0:00:08]} 81. Bd6 {[%clk 0:00:14]}  Kf4 {[%clk 0:00:08]} 82. Bc7 {[%clk 0:00:15]}  Bc8 {[%clk 0:00:08]} 83. Kg2 {[%clk 0:00:14]}  Be6 {[%clk 0:00:09]} 84. Bd6 {[%clk 0:00:14]}  Bd5 {[%clk 0:00:09]} 85. Kf2 {[%clk 0:00:14]}  Bc6 {[%clk 0:00:09]} 86. Bc7 {[%clk 0:00:14]}  Bd7 {[%clk 0:00:07]} 87. Kg2 {[%clk 0:00:14]}  Kf5 {[%clk 0:00:06]} 88. Kf2 {[%clk 0:00:13]}  Ba4 {[%clk 0:00:06]} 89. Kg2 {[%clk 0:00:13]}  Bd1 {[%clk 0:00:06]} 90. Kf2 {[%clk 0:00:13]}  Ke6 {[%clk 0:00:05]} 91. Bd8 {[%clk 0:00:13]}  Kf5 {[%clk 0:00:05]} 92. Bc7 {[%clk 0:00:13]}  Bc2 {[%clk 0:00:06]} 93. Bb8 {[%clk 0:00:13]}  Kf4 {[%clk 0:00:06]} 94. Bc7 {[%clk 0:00:13]}  Bf5 {[%clk 0:00:07]} 95. Kg2 {[%clk 0:00:13]}  Be6 {[%clk 0:00:07]} 96. Bd6 {[%clk 0:00:12]}  Bd5 {[%clk 0:00:08]} 97. Kf2 {[%clk 0:00:12]}  Bc6 {[%clk 0:00:04]} 98. Bc7 {[%clk 0:00:12]}  Bd7 {[%clk 0:00:04]} 99. Kg2 {[%clk 0:00:12]}  Bc8 {[%clk 0:00:04]} 100. Bb8 {[%clk 0:00:10]}  Ba6 {[%clk 0:00:05]} 101. Kf2 {[%clk 0:00:10]}  Bb5 {[%clk 0:00:05]} 102. Bc7 {[%clk 0:00:10]}  Bd7 {[%clk 0:00:06]} 1/2-1/2

[Event "January 9 Late 2024"]
[Site "https://www.chess.com"]
[Date "2024.01.09"]
[Round "1"]
[White "Zhigalko, Sergei"]
[Black "Mizzi, Jack"]
[Result "1-0"]
[Board "56"]
[TimeControl "180+1"]
[WhiteFideId "13502956"]
[BlackFideId "5602521"]
[WhiteElo "2918"]
[BlackElo "2501"]
[WhiteTeam "BLR"]
[BlackTeam "MLT"]
[WhiteClock "0:01:51"]
[BlackClock "0:00:28"]

1. e4 {[%clk 0:03:00]}  c6 {[%clk 0:02:59]} 2. d4 {[%clk 0:03:00]}  d5 {[%clk 0:02:59]} 3. e5 {[%clk 0:03:01]}  Bf5 {[%clk 0:02:58]} 4. Nf3 {[%clk 0:03:01]}  e6 {[%clk 0:02:58]} 5. Be2 {[%clk 0:03:02]}  Ne7 {[%clk 0:02:57]} 6. O-O {[%clk 0:03:01]}  Ng6 {[%clk 0:02:54]} 7. Ne1 {[%clk 0:03:01]}  Ne7 {[%clk 0:02:38]} 8. Nd3 {[%clk 0:03:00]}  Nd7 {[%clk 0:02:35]} 9. Nd2 {[%clk 0:03:00]}  Qc7 {[%clk 0:02:29]} 10. Nb3 {[%clk 0:03:00]}  f6 {[%clk 0:02:19]} 11. Bf4 {[%clk 0:02:43]}  fxe5 {[%clk 0:02:15]} 12. Nxe5 {[%clk 0:02:42]}  Nxe5 {[%clk 0:02:10]} 13. Bxe5 {[%clk 0:02:43]}  Qb6 {[%clk 0:02:07]} 14. Bd3 {[%clk 0:02:35]}  h5 {[%clk 0:02:01]} 15. Re1 {[%clk 0:02:33]}  Kf7 {[%clk 0:01:54]} 16. Qf3 {[%clk 0:02:27]}  Rh6 {[%clk 0:01:39]} 17. Bf4 {[%clk 0:02:21]}  Rh7 {[%clk 0:01:38]} 18. Bg5 {[%clk 0:02:09]}  g6 {[%clk 0:01:18]} 19. Nc5 {[%clk 0:02:08]}  Qxb2 {[%clk 0:01:06]} 20. Nxe6 {[%clk 0:02:06]}  Bh6 {[%clk 0:00:32]} 21. Bxe7 {[%clk 0:01:58]}  Kxe7 {[%clk 0:00:28]} 22. Ng5+ {[%clk 0:01:51]} 1-0

[Event "January 9 Late 2024"]
[Site "https://www.chess.com"]
[Date "2024.01.09"]
[Round "1"]
[White "Zhang, Derek"]
[Black "Liascovich, Lucas"]
[Result "0-1"]
[Board "57"]
[TimeControl "180+1"]
[WhiteFideId "2087871"]
[BlackFideId "108634"]
[WhiteElo "2501"]
[BlackElo "2913"]
[WhiteTeam "USA"]
[BlackTeam "ARG"]
[WhiteClock "0:00:00"]
[BlackClock "0:01:20"]

1. Nf3 {[%clk 0:03:00]}  d5 {[%clk 0:02:59]} 2. c4 {[%clk 0:03:01]}  d4 {[%clk 0:02:58]} 3. b4 {[%clk 0:03:01]}  c5 {[%clk 0:02:57]} 4. e3 {[%clk 0:03:01]}  Nf6 {[%clk 0:02:56]} 5. Bb2 {[%clk 0:02:57]}  e5 {[%clk 0:02:51]} 6. Nxe5 {[%clk 0:02:56]}  Bd6 {[%clk 0:02:51]} 7. Nf3 {[%clk 0:02:56]}  dxe3 {[%clk 0:02:50]} 8. fxe3 {[%clk 0:02:55]}  cxb4 {[%clk 0:02:50]} 9. d4 {[%clk 0:02:55]}  O-O {[%clk 0:02:49]} 10. Bd3 {[%clk 0:02:55]}  Re8 {[%clk 0:02:44]} 11. O-O {[%clk 0:02:43]}  Rxe3 {[%clk 0:02:43]} 12. Qc2 {[%clk 0:02:40]}  Bg4 {[%clk 0:02:34]} 13. Nbd2 {[%clk 0:02:39]}  Nc6 {[%clk 0:02:34]} 14. Rae1 {[%clk 0:02:15]}  Rxe1 {[%clk 0:02:33]} 15. Rxe1 {[%clk 0:02:16]}  Qa5 {[%clk 0:02:33]} 16. d5 {[%clk 0:02:12]}  Bxf3 {[%clk 0:02:32]} 17. Nxf3 {[%clk 0:02:12]}  Ne7 {[%clk 0:02:32]} 18. Bxf6 {[%clk 0:02:10]}  gxf6 {[%clk 0:02:29]} 19. Bxh7+ {[%clk 0:02:10]}  Kg7 {[%clk 0:02:27]} 20. Bd3 {[%clk 0:01:22]}  Rc8 {[%clk 0:02:26]} 21. Qe2 {[%clk 0:01:10]}  Ng6 {[%clk 0:02:19]} 22. Bxg6 {[%clk 0:00:37]}  fxg6 {[%clk 0:02:20]} 23. Qe6 {[%clk 0:00:37]}  Qc5+ {[%clk 0:02:18]} 24. Kh1 {[%clk 0:00:36]}  Rc7 {[%clk 0:02:19]} 25. Nd4 {[%clk 0:00:16]}  Be5 {[%clk 0:01:58]} 26. Nf3 {[%clk 0:00:16]}  Re7 {[%clk 0:01:50]} 27. Qg4 {[%clk 0:00:16]}  Bd6 {[%clk 0:01:42]} 28. Rxe7+ {[%clk 0:00:16]}  Bxe7 {[%clk 0:01:43]} 29. Nh4 {[%clk 0:00:17]}  Qf2 {[%clk 0:01:24]} 30. Qxg6+ {[%clk 0:00:14]}  Kf8 {[%clk 0:01:24]} 31. Qh6+ {[%clk 0:00:13]}  Ke8 {[%clk 0:01:25]} 32. Qh5+ {[%clk 0:00:08]}  Kd8 {[%clk 0:01:24]} 33. Nf3 {[%clk 0:00:01]}  Qf1+ {[%clk 0:01:19]} 34. Ng1 {[%clk 0:00:00]}  Bc5 {[%clk 0:01:20]} 0-1